fUSD/lending_fUSD_20241106
["ID","MTS","AMOUNT","RATE_DAILY","PERIOD"]
[341397133,1730862782545,-219.68727276,0.0004685,30]
[341397134,1730862782556,-154.65696509,0.0004685,30]
[341397135,1730862782566,-159.75752372,0.0004685,30]
[341397136,1730862782575,-155.93342896,0.0004685,30]
[341397137,1730862782585,-699999.0,0.0004688,30]
[341397138,1730862782595,-153.24,0.0004688,120]
[341397139,1730862782605,-2181.39,0.000469,30]
[341397140,1730862782615,-1000.0,0.000469,30]
[341397141,1730862782625,-20208.82086534,0.000469,30]
[341397142,1730862782636,-1000000.0,0.0004698,120]
[341397143,1730862782645,-1000.0,0.00046999,120]
[341397144,1730862782654,-50000.0,0.00047,47]
[341397145,1730862782664,-512.0532462,0.00047,120]
[341397146,1730862782673,-1000.0,0.00047,120]
[341397147,1730862782683,-3093.62658905,0.00047,14]
[341397148,1730862782692,-6000.0,0.00047,120]
[341397149,1730862782701,-1090.04951025,0.00047,7]
[341397150,1730862782711,-124761.22286929,0.00047,120]
[341397151,1730862783200,-125238.77713071,0.00047,120]
[341397152,1730862783210,-5000.0,0.00047,20]
[341397153,1730862783219,-150.0,0.00047,120]
[341397154,1730862783229,-350.0,0.00047,120]
[341397155,1730862783239,-557.0,0.00047,120]
[341397156,1730862783249,-2320.12502153,0.00047,31]
[341397157,1730862783261,-18134.35405839,0.00047,31]
[341397158,1730862783272,-29545.52092008,0.00047,31]
[341397159,1730862783282,-200.0,0.00047,108]
[341397160,1730862783292,-2228.87181016,0.00047,120]
[341397161,1730862783301,-4075.67239224,0.00047,120]
[341397162,1730862783311,-41747.0,0.00047,90]
[341397163,1730862783320,-25000.0,0.00047,120]
[341397164,1730862783330,-2000.0,0.00047,30]
[341397165,1730862783340,-1461.30565404,0.00047,90]
[341397166,1730862783350,-500.0,0.00047,14]
[341397167,1730862783360,-150.0,0.00047042,120]
[341397168,1730862783369,-319.0,0.000471,37]
[341397169,1730862783385,-150.0,0.000472,120]
[341397170,1730862783395,-150.0,0.000472,120]
[341397171,1730862783410,-150.0,0.000472,120]
[341397172,1730862783420,-1000.0,0.000472,30]
[341397173,1730862783430,-1060.36,0.00047202,120]
[341397174,1730862783440,-150.0,0.00047472,30]
[341397175,1730862783449,-150.0,0.00047472,30]
[341397176,1730862783459,-910.36934692,0.00047472,30]
[341397177,1730862783468,-4481.2973852,0.00047472,30]
[341397178,1730862783478,-200.0,0.000475,120]
[341397179,1730862783488,-38195.03891999,0.000475,120]
[341397180,1730862783499,-317.80746547,0.000475,120]
[341397181,1730862783571,-434.37197272,0.00038181,14]
[341397182,1730862784993,194.61,0.00015342,2]
[341397183,1730862786190,-150.0,0.00018123,2]
[341397184,1730862786201,-500.0,0.00034444,30]
[341397185,1730862786211,-500.0,0.00034444,30]
[341397186,1730862786221,-500.0,0.00034444,30]
[341397187,1730862786231,-500.0,0.00034444,30]
[341397188,1730862786240,-500.0,0.00034444,30]
[341397189,1730862786251,-500.0,0.00034444,30]
[341397190,1730862786260,-500.0,0.00034444,30]
[341397191,1730862786270,-500.0,0.00034444,30]
[341397192,1730862786280,-500.0,0.00034444,30]
[341397193,1730862786289,-500.0,0.00034444,30]
[341397194,1730862786298,-7201.37,0.00037249,2]
[341397195,1730862786307,-259.6,0.00037313,30]
[341397196,1730862786317,-100000.0,0.000376,2]
[341397197,1730862786326,-500.0,0.00037764,30]
[341397198,1730862786335,-500.0,0.00037764,30]
[341397199,1730862786344,-515.20816067,0.00037764,30]
[341397200,1730862786354,-500.0,0.00037808,14]
[341397201,1730862786364,-500.0,0.00037808,14]
[341397202,1730862786373,-557.95,0.00037808,14]
[341397203,1730862786388,-500.0,0.00037808,14]
[341397204,1730862786398,-500.0,0.00037808,14]
[341397205,1730862786408,-500.0,0.00037808,14]
[341397206,1730862786418,-500.0,0.00037808,14]
[341397207,1730862786428,-500.0,0.00037808,14]
[341397208,1730862786438,-500.0,0.00037808,14]
[341397209,1730862786448,-500.0,0.00037808,14]
[341397210,1730862786457,-500.0,0.00037808,14]
[341397211,1730862786467,-523.57351661,0.00037808,14]
[341397212,1730862786476,-500.0,0.00037808,14]
[341397213,1730862786486,-500.0,0.00037808,14]
[341397214,1730862786496,-1918.97,0.00037808,14]
[341397215,1730862786505,-500.0,0.00037808,14]
[341397216,1730862786515,-500.0,0.00037808,14]
[341397217,1730862786525,-500.0,0.00037808,14]
[341397218,1730862786535,-500.0,0.00037808,14]
[341397219,1730862786545,-508.71742418,0.00037808,14]
[341397220,1730862786555,-500.0,0.00037808,14]
[341397221,1730862786565,-500.0,0.00037808,14]
[341397222,1730862786575,-500.0,0.00037808,14]
[341397223,1730862786584,-500.0,0.00037808,14]
[341397224,1730862786595,-2407.34,0.00037808,14]
[341397225,1730862786605,-500.0,0.00037808,14]
[341397226,1730862786615,-309.02895654,0.00037808,14]
[341397227,1730862786625,-500.0,0.00037808,14]
[341397228,1730862786640,-500.0,0.00037808,14]
[341397229,1730862786658,-248.25989605,0.0003798,2]
[341397230,1730862786670,-500.0,0.00037999,14]
[341397231,1730862786680,-518.9112864,0.00037999,14]
[341397232,1730862786690,-326.95442598,0.00037999,14]
[341397233,1730862786699,-979.64,0.00037999,14]
[341397234,1730862786709,-500.0,0.00037999,14]
[341397235,1730862786718,-1640.4674,0.00038,2]
[341397236,1730862786727,-1500.0,0.00038075,2]
[341397237,1730862786737,-150.0,0.00038087,2]
[341397238,1730862786747,-1767.29,0.00038099,14]
[341397239,1730862786757,-500.0,0.00038099,14]
[341397240,1730862786767,-500.0,0.00038099,14]
[341397241,1730862786776,-500.0,0.00038099,14]
[341397242,1730862786786,-500.0,0.00038099,14]
[341397243,1730862786795,-500.0,0.00038099,14]
[341397244,1730862786805,-979.64,0.00038099,14]
[341397245,1730862786814,-500.0,0.00038099,14]
[341397246,1730862786824,-500.0,0.00038099,14]
[341397247,1730862786833,-500.0,0.00038099,14]
[341397248,1730862786847,-500.0,0.00038099,14]
[341397249,1730862786856,-263.94377858,0.00038099,15]
[341397250,1730862786865,-554.99,0.00038099,14]
[341397251,1730862786875,-500.0,0.00038099,14]
[341397252,1730862786890,-150.0,0.00038103,2]
[341397253,1730862786899,-1500.0,0.00038118,2]
[341397254,1730862786908,-150.0,0.00038118,2]
[341397255,1730862786919,-150.0,0.00038129,2]
[341397256,1730862786930,-150.0,0.00038131,2]
[341397257,1730862786940,-150.0,0.00038153,2]
[341397258,1730862786949,-1542.96394172,0.00038161,2]
[341397259,1730862786959,-150.0,0.00038168,2]
[341397260,1730862786969,-1500.0,0.0003818,2]
[341397261,1730862786979,-65.62802728,0.00038181,14]
[341397262,1730862786989,-557.95,0.00038181,14]
[341397263,1730862786999,-1918.97,0.00038181,14]
[341397264,1730862787009,-500.0,0.00038182,14]
[341397265,1730862787019,-500.0,0.00038182,14]
[341397266,1730862787030,-500.0,0.00038182,14]
[341397267,1730862787198,-500.0,0.00038182,14]
[341397268,1730862787210,-2407.34,0.00038182,14]
[341397269,1730862787219,-150.0,0.00038185,2]
[341397270,1730862787228,-150.0,0.0003819,2]
[341397271,1730862787238,-1500.0,0.00038191,2]
[341397272,1730862787247,-1500.0,0.00038192,2]
[341397273,1730862787257,-424.12543504,0.00038198,15]
[341397274,1730862787266,-500.0,0.00038198,14]
[341397275,1730862787276,-500.0,0.00038198,14]
[341397276,1730862787285,-500.0,0.00038198,14]
[341397277,1730862787294,-1767.29,0.00038198,14]
[341397278,1730862787303,-505.69848208,0.00038198,14]
[341397279,1730862787313,-500.0,0.00038198,14]
[341397280,1730862787322,-557.95,0.00038198,14]
[341397281,1730862787332,-500.0,0.00038198,14]
[341397282,1730862787341,-500.0,0.00038198,14]
[341397283,1730862787351,-500.0,0.00038198,14]
[341397284,1730862787361,-500.0,0.00038198,14]
[341397285,1730862787370,-500.0,0.00038198,14]
[341397286,1730862787383,-500.0,0.00038198,14]
[341397287,1730862787393,-500.0,0.00038198,14]
[341397288,1730862787402,-500.0,0.00038198,14]
[341397289,1730862787412,-500.0,0.00038198,14]
[341397290,1730862787421,-500.0,0.00038198,14]
[341397291,1730862787431,-500.0,0.00038198,14]
[341397292,1730862787441,-500.0,0.00038198,14]
[341397293,1730862787450,-500.0,0.00038198,14]
[341397294,1730862787459,-500.0,0.00038198,14]
[341397295,1730862787469,-500.0,0.00038198,14]
[341397296,1730862787478,-500.0,0.00038198,14]
[341397297,1730862787487,-500.0,0.00038198,14]
[341397298,1730862787497,-500.0,0.00038198,14]
[341397299,1730862787506,-500.0,0.00038198,14]
[341397300,1730862787515,-1918.97,0.00038198,14]
[341397301,1730862787526,-500.0,0.00038198,14]
[341397302,1730862787535,-500.0,0.00038198,14]
[341397303,1730862787544,-515.75495743,0.00038198,14]
[341397304,1730862787553,-500.0,0.00038198,14]
[341397305,1730862787563,-500.0,0.00038198,14]
[341397306,1730862787572,-517.00136481,0.00038198,14]
[341397307,1730862787581,-500.0,0.00038198,14]
[341397308,1730862787590,-500.0,0.00038198,14]
[341397309,1730862787599,-500.0,0.00038198,14]
[341397310,1730862787608,-554.99,0.00038198,14]
[341397311,1730862787617,-2407.34,0.00038198,14]
[341397312,1730862787626,-500.0,0.00038198,14]
[341397313,1730862787639,-500.0,0.00038198,14]
[341397314,1730862787648,-220.0,0.00038198,2]
[341397315,1730862787658,-230.2515779,0.00038199,13]
[341397316,1730862787667,-500.0,0.00038201,14]
[341397317,1730862787676,-481.38771343,0.00038201,14]
[341397318,1730862787686,-500.0,0.00038201,14]
[341397319,1730862787695,-500.0,0.00038201,14]
[341397320,1730862787704,-554.99,0.00038201,14]
[341397321,1730862787713,-335.08950877,0.00038202,2]
[341397322,1730862787722,-1500.0,0.00038204,2]
[341397323,1730862787731,-150.0,0.00038208,2]
[341397324,1730862787740,-1500.0,0.00038211,2]
[341397325,1730862787749,-1500.0,0.00038213,2]
[341397326,1730862787758,-150.0,0.00038213,2]
[341397327,1730862787768,-1500.0,0.00038214,2]
[341397328,1730862787777,-150.0,0.00038216,2]
[341397329,1730862787786,-1500.0,0.00038222,2]
[341397330,1730862787795,-150.0,0.00038225,2]
[341397331,1730862787804,-150.0,0.00038242,2]
[341397332,1730862787814,-150.0,0.00038246,2]
[341397333,1730862787823,-300.0,0.00038249,2]
[341397334,1730862787833,-150.0,0.00038255,2]
[341397335,1730862787843,-1500.0,0.00038268,2]
[341397336,1730862787855,-150.0,0.0003827,2]
[341397337,1730862787864,-1500.0,0.00038279,2]
[341397338,1730862787874,-150.0,0.00038283,2]
[341397339,1730862787888,-150.0,0.00038283,2]
[341397340,1730862787898,-1500.0,0.00038286,2]
[341397341,1730862787908,-269.2950783,0.00038293,2]
[341397342,1730862787917,-592.21777225,0.00038297,14]
[341397343,1730862787927,-1767.29,0.00038297,14]
[341397344,1730862787936,-557.95,0.00038297,14]
[341397345,1730862787946,-500.0,0.00038297,14]
[341397346,1730862787956,-500.0,0.00038297,14]
[341397347,1730862787965,-1918.97,0.00038297,14]
[341397348,1730862787974,-500.0,0.00038297,14]
[341397349,1730862787983,-500.0,0.00038297,14]
[341397350,1730862787993,-2407.34,0.00038297,14]
[341397351,1730862788003,-300.0,0.00038297,120]
[341397352,1730862788012,-300.0,0.00038298,120]
[341397353,1730862788022,-500.0,0.00038298,14]
[341397354,1730862788031,-500.0,0.00038298,14]
[341397355,1730862788041,-500.0,0.00038298,14]
[341397356,1730862788050,-500.0,0.00038298,14]
[341397357,1730862788059,-500.0,0.00038298,14]
[341397358,1730862788070,-500.0,0.00038298,14]
[341397359,1730862788079,-500.0,0.00038298,14]
[341397360,1730862788088,-1767.29,0.00038298,14]
[341397361,1730862788097,-500.0,0.00038298,14]
[341397362,1730862788106,-1767.29,0.00038298,14]
[341397363,1730862788115,-1767.29,0.00038298,14]
[341397364,1730862788124,-1767.29,0.00038298,14]
[341397365,1730862788139,-1767.29,0.00038298,14]
[341397366,1730862788148,-557.95,0.00038298,14]
[341397367,1730862788157,-557.95,0.00038298,14]
[341397368,1730862788166,-500.0,0.00038298,14]
[341397369,1730862788176,-500.0,0.00038298,14]
[341397370,1730862788185,-557.95,0.00038298,14]
[341397371,1730862788194,-500.0,0.00038298,14]
[341397372,1730862788203,-557.95,0.00038298,14]
[341397373,1730862788213,-500.0,0.00038298,14]
[341397374,1730862788222,-500.0,0.00038298,14]
[341397375,1730862788231,-500.0,0.00038298,14]
[341397376,1730862788239,-500.0,0.00038298,14]
[341397377,1730862788248,-500.0,0.00038298,14]
[341397378,1730862788258,-500.0,0.00038298,14]
[341397379,1730862788268,-500.0,0.00038298,14]
[341397380,1730862788277,-530.93748455,0.00038298,14]
[341397381,1730862788286,-500.0,0.00038298,14]
[341397382,1730862788298,-500.0,0.00038298,14]
[341397383,1730862788308,-500.0,0.00038298,14]
[341397384,1730862788317,-500.0,0.00038298,14]
[341397385,1730862788326,-500.0,0.00038298,14]
[341397386,1730862788335,-500.0,0.00038298,14]
[341397387,1730862788345,-500.0,0.00038298,14]
[341397388,1730862788355,-500.0,0.00038298,14]
[341397389,1730862788364,-500.0,0.00038298,14]
[341397390,1730862788373,-500.0,0.00038298,14]
[341397391,1730862788386,-500.0,0.00038298,14]
[341397392,1730862788396,-300.41370694,0.00038298,14]
[341397393,1730862788406,-151.0,0.00038298,7]
[341397394,1730862788415,-500.0,0.00038298,14]
[341397395,1730862788425,-500.0,0.00038298,14]
[341397396,1730862788434,-500.0,0.00038298,14]
[341397397,1730862788443,-500.0,0.00038298,14]
[341397398,1730862788453,-500.0,0.00038298,14]
[341397399,1730862788462,-518.98665376,0.00038298,14]
[341397400,1730862788471,-543.79753039,0.00038298,14]
[341397401,1730862788480,-500.0,0.00038298,14]
[341397402,1730862788489,-500.0,0.00038298,14]
[341397403,1730862788500,-500.0,0.00038298,14]
[341397404,1730862788510,-500.0,0.00038298,14]
[341397405,1730862788522,-500.0,0.00038298,14]
[341397406,1730862788532,-500.0,0.00038298,14]
[341397407,1730862788541,-500.0,0.00038298,14]
[341397408,1730862788550,-500.0,0.00038298,14]
[341397409,1730862788561,-500.0,0.00038298,14]
[341397410,1730862788571,-801.565271,0.00038298,7]
[341397411,1730862788581,-1918.97,0.00038298,14]
[341397412,1730862788591,-151.0,0.00038298,7]
[341397413,1730862788601,-500.0,0.00038298,14]
[341397414,1730862788611,-1918.97,0.00038298,14]
[341397415,1730862788622,-500.0,0.00038298,14]
[341397416,1730862788635,-500.0,0.00038298,14]
[341397417,1730862788644,-500.0,0.00038298,14]
[341397418,1730862788653,-1918.97,0.00038298,14]
[341397419,1730862788661,-500.0,0.00038298,14]
[341397420,1730862788670,-1918.97,0.00038298,14]
[341397421,1730862788680,-362.66928626,0.00038298,14]
[341397422,1730862788689,-500.0,0.00038298,14]
[341397423,1730862788700,-500.0,0.00038298,14]
[341397424,1730862788710,-500.0,0.00038298,14]
[341397425,1730862788721,-500.0,0.00038298,14]
[341397426,1730862788731,-500.0,0.00038298,14]
[341397427,1730862788742,-500.0,0.00038298,14]
[341397428,1730862788752,-500.0,0.00038298,14]
[341397429,1730862788762,-858.134461,0.00038298,7]
[341397430,1730862788773,-500.0,0.00038298,14]
[341397431,1730862788782,-394.82349294,0.00038298,14]
[341397432,1730862788791,-500.0,0.00038298,14]
[341397433,1730862788800,-801.565271,0.00038298,7]
[341397434,1730862788809,-500.0,0.00038298,14]
[341397435,1730862788818,-500.0,0.00038298,14]
[341397436,1730862788827,-554.99,0.00038298,14]
[341397437,1730862788837,-500.0,0.00038298,14]
[341397438,1730862788851,-554.99,0.00038298,14]
[341397439,1730862788860,-554.99,0.00038298,14]
[341397440,1730862788869,-554.99,0.00038298,14]
[341397441,1730862788882,-727.761744,0.00038298,7]
[341397442,1730862788893,-2407.34,0.00038298,14]
[341397443,1730862788902,-554.99,0.00038298,14]
[341397444,1730862788911,-255.65366733,0.00038298,7]
[341397445,1730862789017,-500.0,0.00034444,30]
[341397446,1730862789029,-150.0,0.000381,2]
[341397447,1730862789039,-150.0,0.00038159,2]
[341397448,1730862789049,-500.0,0.00038198,14]
[341397449,1730862789058,-500.0,0.00038198,14]
[341397450,1730862789066,-150.0,0.00038221,2]
[341397451,1730862789076,-602.48079367,0.00038298,7]
[341397452,1730862789084,-2407.34,0.00038298,14]
[341397453,1730862789093,-2407.34,0.00038298,14]
[341397454,1730862789103,-500.0,0.00038299,14]
[341397455,1730862789113,-500.0,0.00038299,14]
[341397456,1730862789122,-500.0,0.00038299,14]
[341397457,1730862789135,-555.12,0.00038299,14]
[341397458,1730862789145,-500.0,0.00038299,14]
[341397459,1730862789154,-500.0,0.00038299,14]
[341397460,1730862789163,-505.33044262,0.00038299,14]
[341397461,1730862789172,-1767.29,0.00038299,14]
[341397462,1730862789181,-1767.29,0.00038299,14]
[341397463,1730862789190,-1767.29,0.00038299,14]
[341397464,1730862789199,-1767.29,0.00038299,14]
[341397465,1730862789209,-557.95,0.00038299,14]
[341397466,1730862789218,-500.0,0.00038299,14]
[341397467,1730862789227,-500.0,0.00038299,14]
[341397468,1730862789236,-557.95,0.00038299,14]
[341397469,1730862789245,-500.0,0.00038299,14]
[341397470,1730862789254,-557.95,0.00038299,14]
[341397471,1730862789263,-500.0,0.00038299,14]
[341397472,1730862789272,-557.95,0.00038299,14]
[341397473,1730862789281,-557.95,0.00038299,14]
[341397474,1730862789291,-500.0,0.00038299,14]
[341397475,1730862789300,-500.0,0.00038299,14]
[341397476,1730862789309,-500.0,0.00038299,14]
[341397477,1730862789318,-500.0,0.00038299,14]
[341397478,1730862789328,-500.0,0.00038299,14]
[341397479,1730862789337,-500.0,0.00038299,14]
[341397480,1730862789346,-500.0,0.00038299,14]
[341397481,1730862789356,-500.0,0.00038299,14]
[341397482,1730862789365,-500.0,0.00038299,14]
[341397483,1730862789375,-500.0,0.00038299,14]
[341397484,1730862789388,-452.71247205,0.00038299,14]
[341397485,1730862789398,-500.0,0.00038299,14]
[341397486,1730862789407,-979.64,0.00038299,14]
[341397487,1730862789417,-979.64,0.00038299,14]
[341397488,1730862789426,-151.0,0.00038299,7]
[341397489,1730862789436,-500.0,0.00038299,14]
[341397490,1730862789444,-979.64,0.00038299,14]
[341397491,1730862789453,-151.0,0.00038299,7]
[341397492,1730862789462,-246.69261377,0.00038299,14]
[341397493,1730862789472,-979.64,0.00038299,14]
[341397494,1730862789481,-979.64,0.00038299,14]
[341397495,1730862789491,-500.0,0.00038299,14]
[341397496,1730862789501,-500.0,0.00038299,14]
[341397497,1730862789510,-500.0,0.00038299,14]
[341397498,1730862789519,-500.0,0.00038299,14]
[341397499,1730862789528,-500.0,0.00038299,14]
[341397500,1730862789537,-500.0,0.00038299,14]
[341397501,1730862789547,-500.0,0.00038299,14]
[341397502,1730862789556,-801.565271,0.00038299,7]
[341397503,1730862789565,-151.0,0.00038299,7]
[341397504,1730862789574,-536.51217345,0.00038299,14]
[341397505,1730862789583,-224.223852,0.00038299,7]
[341397506,1730862789593,-801.565271,0.00038299,7]
[341397507,1730862789603,-500.0,0.00038299,14]
[341397508,1730862789612,-500.0,0.00038299,14]
[341397509,1730862789621,-500.0,0.00038299,14]
[341397510,1730862789636,-1918.97,0.00038299,14]
[341397511,1730862789645,-500.0,0.00038299,14]
[341397512,1730862789654,-1918.97,0.00038299,14]
[341397513,1730862789663,-1918.97,0.00038299,14]
[341397514,1730862789673,-1918.97,0.00038299,14]
[341397515,1730862789682,-1918.97,0.00038299,14]
[341397516,1730862789691,-858.134461,0.00038299,7]
[341397517,1730862789700,-500.0,0.00038299,14]
[341397518,1730862789710,-858.134461,0.00038299,7]
[341397519,1730862789719,-500.0,0.00038299,14]
[341397520,1730862789729,-500.0,0.00038299,14]
[341397521,1730862789738,-500.0,0.00038299,14]
[341397522,1730862789748,-498.47497496,0.00038299,14]
[341397523,1730862789757,-801.565271,0.00038299,7]
[341397524,1730862789767,-801.565271,0.00038299,7]
[341397525,1730862789776,-500.0,0.00038299,14]
[341397526,1730862789784,-500.0,0.00038299,14]
[341397527,1730862789795,-727.761744,0.00038299,7]
[341397528,1730862789804,-500.0,0.00038299,14]
[341397529,1730862789814,-500.0,0.00038299,14]
[341397530,1730862789823,-727.761744,0.00038299,7]
[341397531,1730862789832,-554.99,0.00038299,14]
[341397532,1730862789841,-307.305904,0.00038299,120]
[341397533,1730862789852,-858.134461,0.00038299,7]
[341397534,1730862789862,-500.0,0.00038299,14]
[341397535,1730862789871,-554.99,0.00038299,14]
[341397536,1730862789884,-151.0,0.000383,7]
[341397537,1730862789894,-801.565271,0.000383,7]
[341397538,1730862789903,-858.134461,0.000383,7]
[341397539,1730862789912,-801.565271,0.000383,7]
[341397540,1730862789921,-727.761744,0.000383,7]
[341397541,1730862789934,-1500.0,0.00038308,2]
[341397542,1730862789944,-150.0,0.0003831,2]
[341397543,1730862789953,-150.0,0.00038313,2]
[341397544,1730862789962,-150.0,0.00038315,2]
[341397545,1730862789972,-74.99752713,0.00038327,2]
[341397546,1730862789986,-75.00247287,0.00038327,2]
[341397547,1730862789995,-150.0,0.00038328,2]
[341397548,1730862790005,-205.79602608,0.00038329,14]
[341397549,1730862791952,501.0,0.00016,2]
[341397554,1730863158291,157.37,0.00015342,2]
[341397557,1730863243764,150.0,0.000165,3]
[341397560,1730863488184,3471.09664574,0.00022,60]
[341397561,1730863488229,33705.90335426,0.00022,60]
[341397563,1730863508719,70000.0,0.00016,2]
[341397564,1730863508744,2361953.91281517,0.00016,2]
[341397565,1730863686542,108469.30404546,0.00015,2]
[341397566,1730863689081,157.32,0.00015342,2]
[341397582,1730863832227,-150.0,0.00018107,2]
[341397584,1730863832238,-1334.99886769,0.0001882,2]
[341397586,1730863832248,-603.68543862,0.0001892,2]
[341397588,1730863832258,-670.74223359,0.00019223,2]
[341397599,1730863832394,-664.25663409,0.00019223,2]
[341397600,1730863832404,-300.0,0.00019725,2]
[341397601,1730863832415,-252.05565081,0.0002,5]
[341397602,1730863832426,-150.99,0.00020335,2]
[341397603,1730863832437,-559.10309831,0.00020335,2]
[341397604,1730863832448,-951.01690169,0.00020335,2]
[341397605,1730863832458,-50000.0,0.00020335,2]
[341397606,1730863832467,-160.53,0.00020433,2]
[341397607,1730863832477,-593.91488732,0.00020433,2]
[341397608,1730863832490,-1651.26511268,0.00020433,2]
[341397609,1730863832500,-348.65,0.00020433,2]
[341397610,1730863832509,-2026.43,0.00020433,2]
[341397611,1730863832519,-178.0315,0.00020436,2]
[341397612,1730863832530,-5452.35,0.00020436,2]
[341397613,1730863832548,-250.0,0.00021,2]
[341397614,1730863832564,-1000.0,0.00021917,2]
[341397615,1730863832574,-168.23,0.00021918,2]
[341397616,1730863832584,-962.0,0.00021999,2]
[341397617,1730863832594,-5931.92254735,0.00022,2]
[341397618,1730863832603,-13446.37307873,0.00022,2]
[341397619,1730863832612,-750.9344042,0.00022,7]
[341397620,1730863832622,-220.94,0.00022137,2]
[341397621,1730863832631,-200.19367748,0.00022885,2]
[341397622,1730863832642,-300.0,0.00023,2]
[341397623,1730863832652,-6166.0,0.00023,2]
[341397624,1730863832661,-220.94,0.00023011,2]
[341397625,1730863832670,-164.14,0.00023624,2]
[341397626,1730863832680,-1089.11,0.00023672,2]
[341397627,1730863832689,-1852.42,0.00023783,2]
[341397628,1730863832699,-2834.69,0.00023783,2]
[341397629,1730863832708,-220.94,0.00023885,2]
[341397630,1730863832717,-1801.42170579,0.00023922,2]
[341397631,1730863832727,-2490.87,0.00023973,2]
[341397632,1730863832736,-200.0,0.00024658,2]
[341397633,1730863832746,-200.0,0.00024658,2]
[341397634,1730863832756,-200.0,0.00024658,2]
[341397635,1730863832765,-220.94,0.00024759,2]
[341397636,1730863832775,-500.0,0.00024932,2]
[341397637,1730863832784,-500.0,0.00024932,2]
[341397638,1730863832793,-500.0,0.00024932,2]
[341397639,1730863832802,-500.0,0.00024932,2]
[341397640,1730863832812,-752.67,0.0002499,3]
[341397641,1730863832822,-350.0,0.00025,2]
[341397642,1730863832831,-1017.62923734,0.00025,60]
[341397643,1730863832840,-1000.0,0.00025,60]
[341397644,1730863832849,-225.25947085,0.00025,120]
[341397645,1730863832859,-79947.04319398,0.00025,2]
[341397646,1730863832868,-637.98973465,0.00025,120]
[341397647,1730863832877,-3115.34279189,0.00025,60]
[341397648,1730863832887,-8768.71070578,0.00025,2]
[341397649,1730863832896,-424.084952,0.00025,120]
[341397650,1730863832906,-194.7,0.000253,2]
[341397651,1730863832915,-4097.1182928,0.000253,5]
[341397652,1730863832924,-3612.09,0.00025568,2]
[341397653,1730863832933,-220.94,0.00025632,2]
[341397654,1730863832942,-724.54460096,0.00026,30]
[341397655,1730863832952,-165.7,0.00026408,2]
[341397656,1730863832961,-200.0,0.00026605,2]
[341397657,1730863832971,-10710.47,0.00026782,2]
[341397658,1730863832982,-800.0,0.00026986,120]
[341397659,1730863832992,-800.0,0.00026986,120]
[341397660,1730863833001,-800.0,0.00026986,120]
[341397661,1730863833010,-800.0,0.00026986,120]
[341397662,1730863833019,-467.08,0.00026986,120]
[341397663,1730863833029,-400.0,0.00027,2]
[341397664,1730863833038,-5243.08,0.00027,120]
[341397665,1730863833047,-674.21769566,0.00027,120]
[341397666,1730863833057,-508.1806079,0.00027,120]
[341397667,1730863833066,-299.296595,0.00027,120]
[341397668,1730863833076,-262.87,0.00027193,2]
[341397669,1730863833085,-440.66,0.0002728,4]